fUST/lending_fUST_20260413
["ID","MTS","AMOUNT","RATE_DAILY","PERIOD"]
[420355693,1776024641169,-151.0,0.00016438,2]
[420355696,1776024641195,-153.0,0.00016438,2]
[420355698,1776024641217,-151.0,0.00016438,2]
[420355700,1776024641243,-153.0,0.00016438,2]
[420355702,1776024641257,-151.0,0.00016438,2]
[420355704,1776024641282,-648.0,0.00016438,2]
[420355706,1776024641293,-153.0,0.00016438,2]
[420355708,1776024641308,-151.0,0.00016438,2]
[420355709,1776024641324,-648.0,0.00016438,2]
[420355712,1776024641335,-153.0,0.00016438,2]
[420355713,1776024641347,-648.0,0.00016438,2]
[420355715,1776024641361,-151.0,0.00016438,2]
[420355717,1776024641373,-153.0,0.00016438,2]
[420355719,1776024641385,-648.0,0.00016438,2]
[420355721,1776024641394,-151.0,0.00016438,2]
[420355723,1776024641411,-153.0,0.00016438,2]
[420355725,1776024641422,-648.0,0.00016438,2]
[420355727,1776024641437,-151.0,0.00016438,2]
[420355729,1776024641450,-648.0,0.00016438,2]
[420355731,1776024641468,-153.0,0.00016438,2]
[420355733,1776024641479,-151.0,0.00016438,2]
[420355734,1776024641492,-648.0,0.00016438,2]
[420355736,1776024641518,-153.0,0.00016438,2]
[420355738,1776024641528,-151.0,0.00016438,2]
[420355740,1776024641547,-648.0,0.00016438,2]
[420355742,1776024641570,-153.0,0.00016438,2]
[420355743,1776024641584,-154.45615531,0.00016438,2]
[420355745,1776024641613,-648.0,0.00016438,2]
[420355747,1776024641623,-153.0,0.00016438,2]
[420355749,1776024641645,-648.0,0.00016438,2]
[420355751,1776024641658,-153.0,0.00016438,2]
[420355753,1776024641667,-648.0,0.00016438,2]
[420355755,1776024641685,-153.0,0.00016438,2]
[420355757,1776024641699,-648.0,0.00016438,2]
[420355759,1776024641710,-153.0,0.00016438,2]
[420355761,1776024641721,-648.0,0.00016438,2]
[420355763,1776024641739,-153.0,0.00016438,2]
[420355765,1776024641751,-648.0,0.00016438,2]
[420355767,1776024641763,-153.0,0.00016438,2]
[420355770,1776024641774,-648.0,0.00016438,2]
[420355772,1776024641787,-153.0,0.00016438,2]
[420355774,1776024641799,-176.52891142,0.00016438,2]
[420355776,1776024641811,-153.0,0.00016438,2]
[420355778,1776024641823,-153.0,0.00016438,2]
[420355780,1776024641834,-153.0,0.00016438,2]
[420355782,1776024641846,-153.0,0.00016438,2]
[420355785,1776024641859,-153.0,0.00016438,2]
[420355787,1776024641869,-153.0,0.00016438,2]
[420355789,1776024641878,-153.0,0.00016438,2]
[420355791,1776024641887,-153.0,0.00016438,2]
[420355793,1776024641896,-153.0,0.00016438,2]
[420355794,1776024641907,-153.0,0.00016438,2]
[420355796,1776024641916,-153.0,0.00016438,2]
[420355798,1776024641926,-153.0,0.00016438,2]
[420355800,1776024641936,-178.42236235,0.00016438,2]
[420355802,1776024641945,-347.41390026,0.00016438,2]
[420355804,1776024641958,-500.0,0.00016438,2]
[420355806,1776024641968,-500.0,0.00016438,2]
[420355808,1776024641977,-500.0,0.00016438,2]
[420355810,1776024641987,-1074.62,0.00016438,2]
[420355812,1776024641999,-500.0,0.00016438,2]
[420355814,1776024642009,-500.0,0.00016438,2]
[420355817,1776024642020,-4145.55,0.00016438,2]
[420355818,1776024642030,-500.0,0.00016438,2]
[420355820,1776024642043,-500.0,0.00016438,2]
[420355822,1776024642053,-329.59,0.00016438,2]
[420355824,1776024642063,-500.0,0.00016438,2]
[420355826,1776024642072,-406.12,0.00016438,2]
[420355828,1776024642086,-500.0,0.00016438,2]
[420355830,1776024642095,-485.21,0.00016438,2]
[420355832,1776024642105,-500.0,0.00016438,2]
[420355834,1776024642118,-500.0,0.00016438,2]
[420355836,1776024642128,-3504.24,0.00016438,2]
[420355838,1776024642139,-2094.6,0.00016438,2]
[420355840,1776024642149,-500.0,0.00016438,2]
[420355842,1776024642162,-560.44335845,0.00016438,2]
[420355844,1776024642172,-999.0618653,0.00016438,2]
[420355846,1776024642183,-500.0,0.00016438,2]
[420355848,1776024642193,-513.3641946,0.00016438,2]
[420355850,1776024642206,-706.72,0.00016438,2]
[420355865,1776024642371,-507.74114023,0.00016438,2]
[420355867,1776024642383,-1534.89,0.00016438,2]
[420355869,1776024642409,-502.29457048,0.00016438,2]
[420355871,1776024642418,-579.77,0.00016438,2]
[420355874,1776024642433,-5178.65,0.00016438,2]
[420355876,1776024642458,-648.37,0.00016438,2]
[420355877,1776024642477,-510.94322579,0.00016438,2]
[420355880,1776024642501,-552.89487883,0.00016438,2]
[420355881,1776024642521,-500.88134935,0.00016438,2]
[420355884,1776024642557,-500.77896907,0.00016438,2]
[420355885,1776024642596,-500.0,0.00016438,2]
[420355887,1776024642616,-500.68270351,0.00016438,2]
[420355889,1776024642644,-505.51631358,0.00016438,2]
[420355893,1776024642678,-500.0,0.00016438,2]
[420355894,1776024642701,-577.18940498,0.00016438,2]
[420355896,1776024642743,-500.63274299,0.00016438,2]
[420355898,1776024642765,-500.0,0.00016438,2]
[420355901,1776024642779,-512.96510427,0.00016438,2]
[420355903,1776024642795,-153.0,0.00016438,2]
[420355905,1776024642821,-500.0,0.00016438,2]
[420355907,1776024642832,-153.0,0.00016438,2]
[420355909,1776024642857,-153.0,0.00016438,2]
[420355911,1776024642869,-153.0,0.00016438,2]
[420355913,1776024642879,-153.0,0.00016438,2]
[420355915,1776024642907,-153.0,0.00016438,2]
[420355917,1776024642916,-153.0,0.00016438,2]
[420355919,1776024642925,-153.0,0.00016438,2]
[420355921,1776024642953,-153.0,0.00016438,2]
[420355923,1776024642962,-500.0,0.00016438,2]
[420355925,1776024642971,-3874.52809013,0.00016438,2]
[420355927,1776024642994,-1039.9,0.00016438,2]
[420355929,1776024643004,-500.0,0.00016438,2]
[420355931,1776024643014,-161.55557242,0.00016438,2]
[420355933,1776024643029,-501.74118153,0.00016438,2]
[420355935,1776024643042,-500.0,0.00016438,2]
[420355937,1776024643052,-500.0,0.00016438,2]
[420355939,1776024643061,-508.91499492,0.00016438,2]
[420355940,1776024643079,-500.0,0.00016438,2]
[420355942,1776024643088,-522.39507329,0.00016438,2]
[420355944,1776024643098,-500.0,0.00016438,2]
[420355946,1776024643108,-165.40122247,0.00016438,2]
[420355948,1776024643125,-788.0,0.00016438,2]
[420355950,1776024643135,-500.0,0.00016438,2]
[420355952,1776024643144,-490.0,0.00016438,2]
[420355954,1776024643154,-500.55144716,0.00016438,2]
[420355956,1776024643167,-555.01,0.00016438,2]
[420355958,1776024643177,-558.57748637,0.00016438,2]
[420355960,1776024643186,-834.37,0.00016438,2]
[420355962,1776024643196,-1018.19,0.00016438,2]
[420355964,1776024643209,-500.0,0.00016438,2]
[420355966,1776024643219,-649.44,0.00016438,2]
[420355968,1776024643228,-631.37503037,0.00016438,2]
[420355969,1776024643237,-500.0,0.00016438,2]
[420355971,1776024643253,-500.0,0.00016438,2]
[420355973,1776024643262,-500.0,0.00016438,2]
[420355975,1776024643271,-635.02315964,0.00016438,2]
[420355977,1776024643284,-4123.41,0.00016438,2]
[420355979,1776024643297,-787.37,0.00016438,2]
[420355981,1776024643306,-500.55424306,0.00016438,2]
[420355983,1776024643315,-500.0,0.00016438,2]
[420355985,1776024643331,-500.0,0.00016438,2]
[420355987,1776024643341,-639.06,0.00016438,2]
[420355989,1776024643350,-500.0,0.00016438,2]
[420355991,1776024643361,-4922.21,0.00016438,2]
[420355993,1776024643379,-2861.98,0.00016438,2]
[420355995,1776024643389,-1544.16,0.00016438,2]
[420355997,1776024643399,-500.0,0.00016438,2]
[420355999,1776024643412,-500.0,0.00016438,2]
[420356001,1776024643425,-4884.9,0.00016438,2]
[420356003,1776024643435,-9861.02,0.00016438,2]
[420356005,1776024643447,-500.0,0.00016438,2]
[420356006,1776024643458,-6398.84,0.00016438,2]
[420356008,1776024643468,-500.0,0.00016438,2]
[420356010,1776024643478,-500.0,0.00016438,2]
[420356012,1776024643496,-4703.6,0.00016438,2]
[420356014,1776024643506,-746.1,0.00016438,2]
[420356017,1776024643516,-500.0,0.00016438,2]
[420356018,1776024643533,-883.42,0.00016438,2]
[420356020,1776024643546,-526.85,0.00016438,2]
[420356022,1776024643555,-3038.71,0.00016438,2]
[420356024,1776024643568,-768.12,0.00016438,2]
[420356027,1776024643583,-566.24,0.00016438,2]
[420356029,1776024643595,-1080.88,0.00016438,2]
[420356030,1776024643604,-500.0,0.00016438,2]
[420356032,1776024643627,-625.57,0.00016438,2]
[420356034,1776024643638,-500.0,0.00016438,2]
[420356036,1776024643650,-156.22789998,0.00016438,2]
[420356039,1776024643675,-4262.84,0.00016438,2]
[420356040,1776024643684,-500.0,0.00016438,2]
[420356042,1776024643702,-636.13,0.00016438,2]
[420356045,1776024643718,-4288.94,0.00016438,2]
[420356047,1776024643728,-500.0,0.00016438,2]
[420356049,1776024643753,-500.0,0.00016438,2]
[420356051,1776024643763,-500.0,0.00016438,2]
[420356052,1776024643780,-767.06,0.00016438,2]
[420356054,1776024643795,-1091.38,0.00016438,2]
[420356057,1776024643808,-500.0,0.00016438,2]
[420356058,1776024643820,-500.0,0.00016438,2]
[420356061,1776024643839,-500.0,0.00016438,2]
[420356063,1776024643851,-500.0,0.00016438,2]
[420356065,1776024643864,-1528.0,0.00016438,2]
[420356067,1776024643891,-250.0,0.00016438,3]
[420356070,1776024643900,-1987.020076,0.00016438,2]
[420356072,1776024643910,-1987.020076,0.00016438,2]
[420356074,1776024643946,-1987.020076,0.00016438,2]
[420356077,1776024643963,-1987.020076,0.00016438,2]
[420356078,1776024644058,-1987.020076,0.00016438,2]
[420356080,1776024644202,-1987.020076,0.00016438,2]
[420356083,1776024644290,-1987.020076,0.00016438,2]
[420356085,1776024644307,-1987.020076,0.00016438,2]
[420356087,1776024644329,-1987.020076,0.00016438,2]
[420356089,1776024644341,-1987.020076,0.00016438,2]
[420356091,1776024644350,-1987.020076,0.00016438,2]
[420356093,1776024644367,-1987.020076,0.00016438,2]
[420356094,1776024644378,-1987.020076,0.00016438,2]
[420356096,1776024644388,-1987.020076,0.00016438,2]
[420356098,1776024644399,-1987.020076,0.00016438,2]
[420356101,1776024644412,-1987.020076,0.00016438,2]
[420356103,1776024644421,-299.86660917,0.00016452,2]
[420356104,1776024644431,-4439.0,0.00016496,2]
[420356106,1776024644441,-820.0,0.00016516,2]
[420356108,1776024644456,-4439.0,0.00016534,2]
[420356110,1776024644465,-820.0,0.00016569,2]
[420356112,1776024644475,-820.0,0.00016569,2]
[420356114,1776024644485,-2207.0,0.0001657,2]
[420356116,1776024644500,-1406.0,0.0001657,2]
[420356118,1776024644509,-645.0,0.0001657,2]
[420356120,1776024644519,-820.0,0.00016574,2]
[420356122,1776024644528,-820.0,0.00016574,2]
[420356124,1776024644543,-820.0,0.00016575,2]
[420356126,1776024644553,-393.0,0.00016576,7]
[420356128,1776024644562,-393.0,0.00016576,7]
[420356130,1776024644571,-393.0,0.00016581,30]
[420356132,1776024644583,-214.0,0.00016622,2]
[420356134,1776024644592,-214.0,0.00016622,2]
[420356136,1776024644602,-478.75725327,0.00016636,2]
[420356138,1776024644612,-578.20924308,0.00016636,2]
[420356140,1776024644621,-2312.83697232,0.00016636,2]
[420356142,1776024644630,-527.66419969,0.00016646,2]
[420356144,1776024644639,-820.0,0.0001665,2]
[420356146,1776024644649,-820.0,0.00016666,2]
[420356148,1776024644658,-200.0,0.00016711,2]
[420356150,1776024644667,-800.78881745,0.00016712,30]
[420356152,1776024644676,-1143.5653,0.00016712,2]
[420356154,1776024644686,-884.6594,0.00016712,2]
[420356156,1776024644695,-500.0,0.00016712,2]
[420356158,1776024644705,-500.0,0.00016712,2]
[420356160,1776024644715,-500.0,0.00016712,2]
[420356161,1776024644724,-500.0,0.00016712,2]
[420356162,1776024644734,-1074.62,0.00016712,2]
[420356163,1776024644745,-500.0,0.00016712,2]
[420356164,1776024644754,-500.0,0.00016712,2]
[420356165,1776024644764,-4145.55,0.00016712,2]
[420356166,1776024644774,-500.0,0.00016712,2]
[420356167,1776024644783,-151.0,0.00016712,2]
[420356168,1776024644793,-236.80341356,0.00016712,2]
[420356169,1776024644802,-500.0,0.00016712,2]
[420356170,1776024644813,-500.0,0.00016712,2]
[420356171,1776024644829,-500.0,0.00016712,2]
[420356172,1776024644838,-500.0,0.00016712,2]
[420356173,1776024644849,-3504.24,0.00016712,2]
[420356174,1776024644867,-2094.6,0.00016712,2]
[420356175,1776024644876,-500.0,0.00016712,2]
[420356176,1776024644885,-500.0,0.00016712,2]
[420356177,1776024644908,-706.72,0.00016712,2]
[420356178,1776024644917,-1534.89,0.00016712,2]
[420356179,1776024644928,-5178.65,0.00016712,2]
[420356180,1776024644947,-500.0,0.00016712,2]
[420356181,1776024644962,-500.0,0.00016712,2]
[420356182,1776024644981,-500.0,0.00016712,2]
[420356183,1776024645000,-448.46376768,0.00016712,2]
[420356184,1776024645025,-268.51465417,0.00016712,2]
[420356185,1776024645039,-1039.9,0.00016712,2]
[420356186,1776024645075,-500.0,0.00016712,2]
[420356187,1776024645085,-170.57,0.00016712,2]
[420356188,1776024645109,-500.0,0.00016712,2]
[420356189,1776024645135,-168.60550834,0.00016712,2]
[420356191,1776024645167,-500.0,0.00016712,2]
[420356192,1776024645190,-788.0,0.00016712,2]
[420356194,1776024645232,-500.0,0.00016712,2]
[420356196,1776024645263,-555.01,0.00016712,2]
[420356198,1776024645303,-834.37,0.00016712,2]
[420356200,1776024645354,-1018.19,0.00016712,2]
[420356202,1776024645403,-201.66991777,0.00016712,2]
[420356204,1776024645419,-649.44,0.00016712,2]
[420356206,1776024645436,-392.60038525,0.00016712,2]
[420356207,1776024645453,-568.25028967,0.00016712,2]
[420356209,1776024645462,-500.0,0.00016712,2]
[420356211,1776024645472,-4123.41,0.00016712,2]
[420356213,1776024645489,-787.37,0.00016712,2]
[420356215,1776024645503,-500.0,0.00016712,2]
[420356217,1776024645512,-639.06,0.00016712,2]
[420356219,1776024645527,-500.0,0.00016712,2]
[420356221,1776024645548,-4922.21,0.00016712,2]
[420356223,1776024645557,-2861.98,0.00016712,2]
[420356225,1776024645573,-1544.16,0.00016712,2]
[420356227,1776024645588,-519.02867852,0.00016712,2]
[420356229,1776024645597,-500.0,0.00016712,2]
[420356231,1776024645614,-9861.02,0.00016712,2]
[420356234,1776024645628,-500.0,0.00016712,2]
[420356236,1776024645637,-4884.9,0.00016712,2]
[420356238,1776024645646,-6398.84,0.00016712,2]
[420356240,1776024645662,-1987.020076,0.00016712,2]
[420356242,1776024645676,-1987.020076,0.00016712,2]
[420356244,1776024645686,-500.0,0.00016712,2]
[420356246,1776024645701,-1987.020076,0.00016712,2]
[420356248,1776024645714,-500.0,0.00016712,2]
[420356250,1776024645723,-1987.020077,0.00016712,2]
[420356252,1776024645732,-4703.6,0.00016712,2]
[420356254,1776024645742,-746.1,0.00016712,2]
[420356256,1776024645751,-527.55456562,0.00016712,2]
[420356258,1776024645760,-883.42,0.00016712,2]
[420356261,1776024645769,-526.85,0.00016712,2]
[420356264,1776024645777,-3038.71,0.00016712,2]
[420356267,1776024645786,-768.12,0.00016712,2]
[420356269,1776024645795,-566.24,0.00016712,2]
[420356271,1776024645804,-1080.88,0.00016712,2]
[420356273,1776024645813,-500.0,0.00016712,2]
[420356275,1776024645822,-625.57,0.00016712,2]
[420356277,1776024645831,-257.4422132,0.00016712,2]
[420356279,1776024645840,-4262.84,0.00016712,2]
[420356281,1776024645849,-500.0,0.00016712,2]
[420356283,1776024645858,-636.13,0.00016712,2]
[420356285,1776024645867,-4288.94,0.00016712,2]
[420356287,1776024645876,-500.0,0.00016712,2]
[420356289,1776024645886,-158.10727351,0.00016712,2]
[420356291,1776024645895,-500.0,0.00016712,2]
[420356293,1776024645904,-767.06,0.00016712,2]
[420356294,1776024645914,-1091.38,0.00016712,2]
[420356295,1776024645923,-500.0,0.00016712,2]
[420356297,1776024645933,-500.0,0.00016712,2]
[420356298,1776024645942,-500.0,0.00016712,2]
[420356299,1776024645951,-500.0,0.00016712,2]
[420356300,1776024645964,-720.0,0.00016726,2]
[420356301,1776024645973,-1900.872,0.00016739,2]
[420356302,1776024645982,-500.0,0.00016806,2]
[420356303,1776024645991,-820.0,0.00016858,2]
[420356305,1776024646005,-820.0,0.00016895,2]
[420356306,1776024646015,-168.3888056,0.00016909,2]
[420356308,1776024646024,-503.30609004,0.00016916,2]
[420356310,1776024646033,-279.91,0.00016918,7]
[420356312,1776024646042,-279.91,0.00016923,30]
[420356314,1776024646056,-155.0,0.00016939,2]
[420356316,1776024646065,-1611.91298641,0.0001696,2]
[420356318,1776024646074,-522.06253963,0.0001696,2]
[420356320,1776024646084,-1385.948024,0.00016985,2]
[420356322,1776024646097,-585.574,0.00016986,2]
[420356324,1776024646107,-557.9913,0.00016986,2]
[420356326,1776024646118,-884.6594,0.00016986,2]
[420356328,1776024646129,-500.0,0.00016986,2]
[420356330,1776024646143,-500.0,0.00016986,2]
[420356332,1776024646153,-409.999,0.00016986,2]
[420356334,1776024646165,-500.0,0.00016986,2]
[420356336,1776024646177,-1074.62,0.00016986,2]
[420356338,1776024646186,-500.0,0.00016986,2]
[420356340,1776024646204,-500.0,0.00016986,2]
[420356342,1776024646218,-4145.55,0.00016986,2]
[420356344,1776024646227,-500.0,0.00016986,2]
[420356346,1776024646247,-151.0,0.00016986,2]
[420356348,1776024646259,-500.0,0.00016986,2]
[420356350,1776024646267,-500.0,0.00016986,2]
[420356352,1776024646290,-500.0,0.00016986,2]
[420356354,1776024646307,-500.0,0.00016986,2]
[420356356,1776024646323,-3504.24,0.00016986,2]
[420356358,1776024646359,-2094.6,0.00016986,2]
[420356360,1776024646450,-500.0,0.00016986,2]
[420356362,1776024646591,-500.0,0.00016986,2]
[420356364,1776024646690,-706.72,0.00016986,2]
[420356366,1776024646738,-1534.89,0.00016986,2]
[420356369,1776024646756,-5178.65,0.00016986,2]
[420356370,1776024646771,-500.0,0.00016986,2]
[420356372,1776024646787,-500.0,0.00016986,2]
[420356374,1776024646804,-500.0,0.00016986,2]
[420356376,1776024646816,-1039.9,0.00016986,2]
[420356378,1776024646834,-500.0,0.00016986,2]
[420356380,1776024646852,-500.0,0.00016986,2]
[420356382,1776024646867,-500.0,0.00016986,2]
[420356384,1776024646879,-788.0,0.00016986,2]
[420356387,1776024646904,-500.0,0.00016986,2]
[420356389,1776024646920,-555.01,0.00016986,2]
[420356391,1776024646938,-834.37,0.00016986,2]
[420356393,1776024646947,-1018.19,0.00016986,2]
[420356395,1776024646957,-649.44,0.00016986,2]
[420356397,1776024646967,-500.0,0.00016986,2]
[420356399,1776024646985,-4123.41,0.00016986,2]
[420356400,1776024646995,-787.37,0.00016986,2]
[420356401,1776024647005,-500.0,0.00016986,2]
[420356402,1776024647021,-639.06,0.00016986,2]
[420356403,1776024647030,-500.0,0.00016986,2]
[420356404,1776024647040,-4922.21,0.00016986,2]
[420356405,1776024647049,-2861.98,0.00016986,2]
[420356407,1776024647063,-1544.16,0.00016986,2]
[420356409,1776024647073,-460.17101743,0.00016986,2]
[420356411,1776024647082,-9861.02,0.00016986,2]
[420356413,1776024647092,-500.0,0.00016986,2]
[420356415,1776024647103,-4884.9,0.00016986,2]
[420356417,1776024647112,-6398.84,0.00016986,2]
[420356419,1776024647122,-500.0,0.00016986,2]
[420356421,1776024647132,-500.0,0.00016986,2]
[420356423,1776024647143,-4703.6,0.00016986,2]
[420356425,1776024647152,-746.1,0.00016986,2]
[420356427,1776024647162,-883.42,0.00016986,2]
[420356429,1776024647172,-526.85,0.00016986,2]
[420356431,1776024647186,-3038.71,0.00016986,2]
[420356433,1776024647196,-768.12,0.00016986,2]
[420356435,1776024647205,-566.24,0.00016986,2]
[420356437,1776024647218,-1080.88,0.00016986,2]
[420356439,1776024647233,-500.0,0.00016986,2]
[420356441,1776024647244,-625.57,0.00016986,2]
[420356443,1776024647256,-4262.84,0.00016986,2]
[420356445,1776024647272,-500.0,0.00016986,2]
[420356447,1776024647282,-636.13,0.00016986,2]
[420356448,1776024647292,-4288.94,0.00016986,2]
[420356450,1776024647313,-500.0,0.00016986,2]
[420356452,1776024647323,-500.0,0.00016986,2]
[420356454,1776024647332,-767.06,0.00016986,2]
[420356470,1776024647526,-1091.38,0.00016986,2]
[420356472,1776024647540,-500.0,0.00016986,2]
[420356474,1776024647550,-500.0,0.00016986,2]
[420356476,1776024647559,-471.70484085,0.00016986,2]
[420356478,1776024647573,-500.0,0.00016986,2]
[420356479,1776024647588,-1528.0,0.00016986,2]
[420356481,1776024647597,-455.2608298,0.00017026,2]
[420356483,1776024647608,-400.0,0.00017056,7]
[420356485,1776024647634,-400.0,0.00017056,7]
[420356487,1776024647643,-800.0,0.00017056,7]
[420356489,1776024647667,-800.0,0.00017056,7]
[420356491,1776024647683,-800.0,0.00017056,7]
[420356493,1776024647695,-161.0,0.00017058,7]
[420356495,1776024647737,-179.0,0.00017058,7]
[420356498,1776024647783,-179.0,0.00017058,7]
[420356499,1776024647805,-482.77,0.00017058,7]
[420356501,1776024647856,-482.77,0.00017058,7]
[420356503,1776024647883,-461.47,0.00017058,7]
[420356505,1776024647927,-461.47,0.00017058,7]
[420356507,1776024647961,-207.0,0.00017058,7]
[420356509,1776024647987,-207.0,0.00017058,7]
[420356512,1776024648019,-186.0,0.00017058,7]
[420356514,1776024648031,-186.0,0.00017058,7]
[420356515,1776024648059,-182.0,0.00017058,7]
[420356518,1776024648074,-182.0,0.00017058,7]
[420356519,1776024648086,-180.0,0.00017058,7]
[420356522,1776024648112,-180.0,0.00017058,7]
[420356524,1776024648122,-179.0,0.00017058,7]
[420356526,1776024648134,-179.0,0.00017058,7]
[420356528,1776024648148,-152.0,0.00017058,7]
[420356530,1776024648157,-152.0,0.00017058,7]
[420356531,1776024648171,-152.0,0.00017058,7]
[420356534,1776024648181,-152.0,0.00017058,7]
[420356536,1776024648191,-152.0,0.00017058,7]
[420356537,1776024648203,-152.0,0.00017058,7]
[420356539,1776024648215,-152.0,0.00017058,7]
[420356541,1776024648224,-312.17,0.00017058,7]
[420356543,1776024648232,-312.17,0.00017058,7]
[420356545,1776024648244,-152.0,0.00017058,7]
[420356547,1776024648257,-152.0,0.00017058,7]
[420356549,1776024648267,-400.0,0.00017058,7]
[420356551,1776024648277,-400.0,0.00017058,7]
[420356553,1776024648288,-400.0,0.00017058,7]
[420356555,1776024648300,-400.0,0.00017058,7]
[420356557,1776024648310,-400.0,0.00017058,7]
[420356559,1776024648319,-400.0,0.00017058,7]
[420356561,1776024648330,-400.0,0.00017058,7]
[420356563,1776024648339,-400.0,0.00017058,7]
[420356565,1776024648351,-400.0,0.00017058,7]
[420356567,1776024648360,-400.0,0.0001706,7]
[420356569,1776024648370,-152.0,0.00017061,7]
[420356571,1776024648381,-400.0,0.00017061,7]
[420356573,1776024648391,-400.0,0.00017061,7]
[420356575,1776024648402,-400.0,0.00017061,30]
[420356577,1776024648412,-179.0,0.00017063,30]
[420356579,1776024648423,-482.77,0.00017063,30]
[420356581,1776024648433,-461.47,0.00017063,30]
[420356583,1776024648442,-207.0,0.00017063,30]
[420356585,1776024648452,-186.0,0.00017063,30]
[420356587,1776024648461,-182.0,0.00017063,30]
[420356589,1776024648473,-180.0,0.00017063,30]
[420356591,1776024648483,-179.0,0.00017063,30]
[420356593,1776024648493,-152.0,0.00017063,30]
[420356595,1776024648502,-152.0,0.00017063,30]
[420356598,1776024648514,-152.0,0.00017063,30]
[420356600,1776024648524,-152.0,0.00017063,30]
[420356602,1776024648534,-152.0,0.00017063,30]
[420356604,1776024648544,-152.0,0.00017063,30]
[420356606,1776024648553,-312.17,0.00017063,30]
[420356608,1776024648562,-152.0,0.00017063,30]
[420356610,1776024648572,-400.0,0.00017063,30]
[420356611,1776024648581,-400.0,0.00017063,30]
[420356613,1776024648591,-400.0,0.00017063,30]
[420356615,1776024648601,-400.0,0.00017063,30]
[420356617,1776024648610,-400.0,0.00017063,30]
[420356619,1776024648622,-400.0,0.00017063,30]
[420356621,1776024648631,-400.0,0.00017063,30]
[420356623,1776024648641,-400.0,0.00017063,30]
[420356625,1776024648651,-152.0,0.00017066,30]
[420356627,1776024648663,-400.0,0.00017066,30]
[420356629,1776024648672,-2000.0,0.00017083,7]
[420356631,1776024648681,-152.0,0.00017128,7]
[420356633,1776024648691,-152.0,0.00017128,7]
[420356635,1776024648704,-152.0,0.00017133,30]
[420356637,1776024648714,-438.0,0.00017148,2]
[420356639,1776024648724,-1318.0,0.00017148,2]
[420356641,1776024648733,-820.0,0.00017156,2]
[420356643,1776024648747,-820.0,0.00017156,2]
[420356645,1776024648756,-168.0,0.00017166,2]
[420356647,1776024648766,-349.09051661,0.00017184,2]
[420356649,1776024648775,-599.60298507,0.00017184,2]
[420356651,1776024648791,-2398.4119403,0.00017184,2]
[420356653,1776024648802,-820.0,0.00017209,2]
[420356655,1776024648811,-820.0,0.00017214,2]
[420356657,1776024648825,-820.0,0.00017214,2]
[420356659,1776024648838,-820.0,0.00017214,2]
[420356661,1776024648851,-572.5303176,0.00017217,2]
[420356663,1776024648861,-500.0,0.00017217,2]
[420356665,1776024648879,-500.0,0.00017217,2]
[420356667,1776024648894,-500.0,0.00017217,2]
[420356669,1776024648905,-500.0,0.00017217,2]
[420356671,1776024648921,-502.51613263,0.00017217,2]
[420356673,1776024648937,-501.29964568,0.00017217,2]
[420356675,1776024648950,-500.0,0.00017217,2]